Cogmind - Beta 16 @@@ ROGUE MODE // 2025.11.01 @ 17:49:59 Player: Phosphophyllite Result: Self-destructed Performance ------------- Evolutions (2) 1000 Regions Visited (7) 1400 Robots Destroyed (29) 145 Value Destroyed (528) 528 Prototype IDs (26) 520 Alien Tech Used (0) 0 Bonus (346) 346 TOTAL SCORE: 3939 Bonus ------- Follower Combat Kills 46 Aligned with FarCom 300 Cogmind --------- Core Integrity 550/550 Matter 300/300 Energy 140/140 System Corruption 1% Temperature Cool (0) Movement Treading (155) Location -8/Materials Parts ------- > --- POWER (1) -------- Light Deuterium Engine > --- PROPULSION (3) --- Advanced Treads Medium Treads Medium Treads > --- UTILITY (4) ------ High-capacity Storage Unit Sensor Array Armor Integrity Analyzer > --- WEAPON (3) ------- Shotgun Improved Assault Rifle Improved Assault Rifle > --- INVENTORY (20) --- Ion Engine Light Treads Advanced Treads Advanced Treads Advanced Treads Carbon-fiber Leg Improved Heat Sink Medium Storage Unit Advanced Targeting Computer Medium Armor Plating Lightning Gun Shotgun Shotgun AWS/Autocannon Heavy Missile Launcher Power Maul Peak State ------------ > --- POWER ------------ Light Deuterium Engine > --- PROPULSION ------- Advanced Treads Medium Treads Medium Treads > --- UTILITY ---------- High-capacity Storage Unit Sensor Array Armor Integrity Analyzer > --- WEAPON ----------- Shotgun Improved Assault Rifle Improved Assault Rifle > --- INVENTORY -------- Ion Engine Light Treads Carbon-fiber Leg Improved Heat Sink Medium Storage Unit Advanced Targeting Computer Medium Armor Plating Lightning Gun Shotgun Shotgun AWS/Autocannon Heavy Missile Launcher Power Maul [Rating: 34] Favorites ----------- Power Light Angular Momentum Engine Engine Light Angular Momentum Engine Propulsion Light Treads Treads Light Treads Leg Aluminum Leg Utility Sensor Array Device Sensor Array Storage Medium Storage Unit Processor Armor Integrity Analyzer Weapon Improved Assault Rifle Energy Gun Medium Laser Ballistic Gun Improved Assault Rifle Ballistic Cannon Light Cannon Launcher Grenade Launcher Special Weapon Mining Laser Build | -11 -10 -10 -9 -9 -9 -8 -8 ------- Run | Yrd Mat Min Mat Min Exi Min Mat Slots Evolved 4 | . . . 2 . . . 2 Power . | . . . . . . . . Propulsion 1 | . . . 1 . . . . Utility 2 | . . . 1 . . . 1 Weapon 1 | . . . . . . . 1 Parts Attached 30 | 8 4 3 8 4 1 . 2 Power 3 | 1 . 1 . 1 . . . Engine 3 | 1 . 1 . 1 . . . Core . | . . . . . . . . Reactor . | . . . . . . . . Propulsion 7 | 2 2 . . 2 . . 1 Treads 5 | . 2 . . 2 . . 1 Leg 2 | 2 . . . . . . . Wheel . | . . . . . . . . Hover . | . . . . . . . . Flight . | . . . . . . . . Utility 8 | 2 . . 4 1 1 . . Device 3 | 1 . . 2 . . . . Storage 3 | 1 . . 1 . 1 . . Processor 2 | . . . 1 1 . . . Hackware . | . . . . . . . . Protection . | . . . . . . . . Artifact . | . . . . . . . . Weapon 12 | 3 2 2 4 . . . 1 Energy Gun 2 | 2 . . . . . . . Energy Cannon . | . . . . . . . . Ballistic Gun 7 | 1 . 1 4 . . . 1 Ballistic Cannon 1 | . 1 . . . . . . Launcher 1 | . . 1 . . . . . Special Weapon 1 | . 1 . . . . . . Impact Weapon . | . . . . . . . . Slashing Weapon . | . . . . . . . . Piercing Weapon . | . . . . . . . . Special Melee Weapon . | . . . . . . . . Unidentified Prototypes 1 | . . . 1 . . . . Parts Lost . | . . . . . . . . Power . | . . . . . . . . Propulsion . | . . . . . . . . Utility . | . . . . . . . . Weapon . | . . . . . . . . Highest Loss Streak . | . . . . . . . . To Critical Strikes . | . . . . . . . . Average Backups 9 | 5 7 8 8 9 9 12 13 Power . | . 1 1 1 1 1 1 1 Propulsion 1 | 3 1 . 1 1 1 1 2 Utility 2 | . 1 2 2 2 1 3 4 Weapon 4 | 1 3 3 3 5 6 7 6 Tool/Special . | . . . . . . . . Unused Backups 22 | . 4 1 2 2 . . 13 Power 1 | . . . . . . . 1 Propulsion 6 | . 2 . . . . . 4 Utility 6 | . 1 . 2 . . . 3 Weapon 9 | . 1 1 . 2 . . 5 Tool/Special . | . . . . . . . . Average Slot Usage (%) 95 | . 100 100 87 89 100 100 89 Engine 11 | . 14 14 11 11 11 11 9 Treads 26 | . 7 28 22 23 33 33 26 Leg 1 | . 20 . . . . . . Device 11 | . 14 14 11 11 11 11 9 Storage 11 | . 14 14 11 11 11 11 9 Processor 7 | . . . 10 10 11 11 9 Energy Gun 3 | . 14 11 . . . . . Ballistic Gun 16 | . 3 2 19 22 22 22 27 Ballistic Cannon 2 | . 9 10 . . . . . Peak Build Rating 34 | 8 8 12 17 26 29 30 34 Average Rating 19 | 6 7 10 15 17 28 29 31 On Entrance 16 | . 8 7 12 17 26 29 30 Avg Prop Armor Cover (%) . | . . . . . . . . Naked Turns . | . . . . . . . . Heaviest Build 55 | 14 16 20 26 26 52 52 55 Greatest Support 78 | 20 40 40 40 76 76 76 78 Greatest Overweight (x) 2 | 2 . . . . . . . Average Overweight (x) . | . . . . . . . . Largest Inventory Capacity 20 | 8 8 8 10 10 20 20 20 Average Capacity 11 | 7 8 8 9 10 15 20 20 Most Carried 18 | 8 8 8 10 10 14 15 18 Average Carried 10 | 5 7 7 8 9 11 14 15 Final Capacity 20 | 8 8 8 10 10 20 20 20 Final Carried 18 | 8 8 8 10 10 14 15 18 Class Distribution -------------------- 83% | Mutant 16% | Skirmisher Dominant Class ---------------- Mutant | -10/Materials Mutant | -10/Mines Mutant | -9/Materials Mutant | -9/Mines Mutant | -9/Exiles Skirmisher | -8/Mines Skirmisher | -8/Materials Resources | -11 -10 -10 -9 -9 -9 -8 -8 ----------- Run | Yrd Mat Min Mat Min Exi Min Mat Matter Collected 895 | 285 84 101 53 236 10 36 90 Remotely . | . . . . . . . . Salvage Created 720 | 108 125 149 53 120 . 29 136 Parts 51 | 14 16 12 3 4 . 1 1 Haulers Intercepted 1 | . . . 1 . . . . Recyclers Shooed 2 | . . 1 . . . 1 . Parts Field Recycled . | . . . . . . . . Retrieved Matter . | . . . . . . . . Parts Self-Destructed . | . . . . . . . . Prevented . | . . . . . . . . Parts Restored . | . . . . . . . . Kills | -11 -10 -10 -9 -9 -9 -8 -8 ------- Run | Yrd Mat Min Mat Min Exi Min Mat Combat Hostiles Destroyed 20 | . 6 7 . 2 . 2 3 Guns 12 | . 4 1 . 2 . 2 3 Cannons 3 | . 2 1 . . . . . AOE 5 | . . 5 . . . . . Classes Destroyed 7 | 1 2 1 1 2 . . . Tunneler 5 | 5 . . . . . . . Hauler 1 | . . . 1 . . . . Recycler 2 | . 1 1 . . . . . Carrier 1 | . . . . 1 . . . Swarmer 13 | . 6 5 . . . 2 . Grunt 6 | . . 2 . 1 . . 3 Demolisher 1 | . . . . 1 . . . Best Kill Streak 7 | 4 7 4 1 2 . 2 2 Combat Bots Only 4 | . 4 3 . 1 . 2 2 Max Kills in Single Turn 2 | 1 2 2 1 1 . 1 1 Gunslinging . | . . . . . . . . Exploded 1 | . . 1 . . . . . Melee . | . . . . . . . . Uniques/NPCs Destroyed . | . . . . . . . . Combat | -11 -10 -10 -9 -9 -9 -8 -8 -------- Run | Yrd Mat Min Mat Min Exi Min Mat Hostile Shots Fired 118 | . 57 38 . 8 . 8 7 Missed 31 | . 15 12 . 2 . 2 . Hits 87 | . 42 26 . 6 . 6 7 Projectile 87 | . 42 26 . 6 . 6 7 AOE 3 | . . . . 3 . . . Damage Taken 868 | . 346 231 . 121 . 61 109 Core 80 | . 53 17 . 10 . . . Absorbed by Shields . | . . . . . . . . Regen/Repaired (Parts) 89 | . . . . . . . 89 Core Remaining (%) 89 | 100 . 72 . . . 97 . Volleys Fired 62 | 8 15 16 2 9 . 6 6 Largest 3 | 2 2 2 2 2 . 2 3 Hottest 100 | 70 100 80 46 46 . 46 69 Shots Fired 121 | 16 28 25 4 18 . 12 18 Gun 90 | 16 13 9 4 18 . 12 18 Cannon 23 | . 14 9 . . . . . Launcher 7 | . . 7 . . . . . Special 1 | . 1 . . . . . . Kinetic 83 | 8 14 9 4 18 . 12 18 Thermal 30 | 7 14 9 . . . . . Explosive 7 | . . 7 . . . . . Electromagnetic 1 | 1 . . . . . . . Robot Hit Streak 15 | 3 4 7 8 15 . 3 14 Robot Miss Streak 6 | 2 6 6 1 1 . 3 2 Penetration Max . | . . . . . . . . Secondary Targets . | . . . . . . . . Shots Hit Robots 65 | 7 10 10 4 15 . 6 13 Core Hits 44 | 6 9 12 2 3 . 3 9 Critical Kills 1 | . . . . 1 . . . Critical Parts Destroyed . | . . . . . . . . Critical Strikes 3 | . 2 . . 1 . . . Destroy 1 | . . . . 1 . . . Blast 2 | . 2 . . . . . . Melee Attacks . | . . . . . . . . Impact . | . . . . . . . . Slashing . | . . . . . . . . Piercing . | . . . . . . . . Sneak Attacks . | . . . . . . . . Combat Hostiles . | . . . . . . . . Follow-up Attacks . | . . . . . . . . Damage Inflicted 1399 | 95 236 518 51 201 . 97 201 Guns 826 | 88 137 51 51 201 . 97 201 Cannons 138 | . 99 39 . . . . . Explosions 414 | . . 414 . . . . . Melee . | . . . . . . . . Ramming 21 | 7 . 14 . . . . . Kinetic 697 | 9 99 39 51 201 . 97 201 Thermal 252 | 64 137 51 . . . . . Explosive 414 | . . 414 . . . . . Electromagnetic 15 | 15 . . . . . . . Impact . | . . . . . . . . Slashing . | . . . . . . . . Piercing . | . . . . . . . . Highest Corruption 1 | . 1 1 . . . . . Average Corruption 1 | . 1 1 . . . . . Corruption Purged . | . . . . . . . . Corruption Blocked . | . . . . . . . . Effects 12 | . 1 11 . . . . . Message Errors 2 | . . 2 . . . . . Matter Fused 5 | . 1 4 . . . . . Energy Discharges 2 | . . 2 . . . . . Data Loss (minor) 1 | . . 1 . . . . . Data Loss (major) 2 | . . 2 . . . . . Overload Shots . | . . . . . . . . Overflow Damage 7 | . 7 . . . . . . Projectiles 7 | . 7 . . . . . . Explosions . | . . . . . . . . Melee . | . . . . . . . . Knockbacks 3 | . 2 1 . . . . . Impact . | . . . . . . . . Kinetic 3 | . 2 1 . . . . . Secondary . | . . . . . . . . Self-Inflicted Damage . | . . . . . . . . Shots . | . . . . . . . . Rammed 3 | . . 2 . 1 . . . Targets Rammed 6 | 3 . 2 . 1 . . . Kicked 3 | 3 . . . . . . . Crushed . | . . . . . . . . Highest Temperature 234 | 40 234 144 . . . 2 12 Average Temperature 66 | 19 108 61 . . . 2 7 Received Heat Transfer 129 | . . 33 . 24 . 9 63 Siege Activations . | . . . . . . . . Martial Activations . | . . . . . . . . Shielding Activations . | . . . . . . . . Robots Disrupted . | . . . . . . . . Combat Hostiles . | . . . . . . . . Robots Corrupted . | . . . . . . . . Combat Hostiles . | . . . . . . . . Parts Fried . | . . . . . . . . Impact Corruptions . | . . . . . . . . Robots Melted . | . . . . . . . . Combat Hostiles . | . . . . . . . . Parts Melted 1 | . . . . . . 1 . Heat Transferred 740 | 185 407 148 . . . . . Parts Sabotaged . | . . . . . . . . Parts Stolen . | . . . . . . . . Parts Stripped . | . . . . . . . . Power Chain Reactions . | . . . . . . . . Alert | -11 -10 -10 -9 -9 -9 -8 -8 ------- Run | Yrd Mat Min Mat Min Exi Min Mat Maximum Alert Level . | . . . . . . . . Low Security (%) 100 | 100 100 100 100 100 . 100 100 Level 1 . | . . . . . . . . Level 2 . | . . . . . . . . Level 3 . | . . . . . . . . Level 4 . | . . . . . . . . Level 5 . | . . . . . . . . High Security . | . . . . . . . . Max Security . | . . . . . . . . Peak Influence 125 | 10 125 67 21 58 . 74 60 Initial 33 | . . 33 21 . . . . Average 14 | 1 47 13 4 6 . 18 28 Influence Increases 686 | 25 160 186 12 116 . 74 113 Destroy 0b10 Robot/C 460 | . 120 140 . 80 . 60 60 Destroy 0b10 Robot/NC 40 | 25 5 5 5 . . . . Destroy Leader 92 | . 20 30 2 20 . 10 10 Allied During Kill 20 | . . . . 16 . 4 . Successful Hack 32 | . . . 5 . . . 27 Disable Machine 15 | . 15 . . . . . . Destroy Structure 12 | . . 11 . . . . 1 Lose Combat Pursuer 15 | . . . . . . . 15 Influence Decreases 686 | 25 75 215 68 116 . 74 113 Entered New Map 87 | . . 52 35 . . . . Time Decay 579 | 25 75 163 33 96 . 74 113 Lost Ally 20 | . . . . 20 . . . Squads Dispatched 4 | . . . 1 1 . . 2 Investigation 3 | . . . . 1 . . 2 Extermination . | . . . . . . . . Reinforcement 1 | . . . 1 . . . . Assault . | . . . . . . . . Garrison . | . . . . . . . . Intercept . | . . . . . . . . Searches Triggered . | . . . . . . . . Construction Impeded . | . . . . . . . . Haulers Reinforced . | . . . . . . . . Active Scanning Responses . | . . . . . . . . Cargo Convoy Interrupts . | . . . . . . . . Stealth | -11 -10 -10 -9 -9 -9 -8 -8 --------- Run | Yrd Mat Min Mat Min Exi Min Mat Distress Signals 2 | . 1 . 1 . . . . Communications Jammed . | . . . . . . . . Distress Signals . | . . . . . . . . Times Spotted 26 | . 6 9 . 4 . 3 4 Peak Tracking Total 9 | . 9 3 . 2 . 3 3 Tactical Retreats 1 | . . . . . . . 1 Traps | -11 -10 -10 -9 -9 -9 -8 -8 ------- Run | Yrd Mat Min Mat Min Exi Min Mat Traps Triggered 1 | . 1 . . . . . . Indirectly . | . . . . . . . . Trap Hack Attempts . | . . . . . . . . Triggered . | . . . . . . . . Disarmed . | . . . . . . . . Reprogrammed . | . . . . . . . . Reused . | . . . . . . . . Traps Extracted . | . . . . . . . . Installed . | . . . . . . . . Triggered . | . . . . . . . . Machines | -11 -10 -10 -9 -9 -9 -8 -8 ---------- Run | Yrd Mat Min Mat Min Exi Min Mat Machines Disabled 1 | . 1 . . . . . . Max in Single Turn 1 | . 1 . . . . . . Machines Repaired . | . . . . . . . . Machines Dismantled . | . . . . . . . . Machines Sabotaged . | . . . . . . . . Overloaded Fab Kills . | . . . . . . . . Hacking | -11 -10 -10 -9 -9 -9 -8 -8 --------- Run | Yrd Mat Min Mat Min Exi Min Mat Machines Accessed 11 | . . . 1 3 2 . 5 Terminals 6 | . . . 1 2 . . 3 Fabricators . | . . . . . . . . Repair Stations 1 | . . . . . . . 1 Recycling Units . | . . . . . . . . Scanalyzers 1 | . . . . . . . 1 Garrison Access . | . . . . . . . . Total Hacks 35 | . . . 2 8 11 . 14 Successful 25 | . . . 1 3 11 . 10 Failed 10 | . . . 1 5 . . 4 Catastrophic 2 | . . . 1 1 . . . Database Lockouts . | . . . . . . . . Manual 12 | . . . 2 3 1 . 6 Terminals 18 | . . . 2 7 . . 9 Fabricators . | . . . . . . . . Repair Stations 3 | . . . . . . . 3 Recycling Units . | . . . . . . . . Scanalyzers 2 | . . . . . . . 2 Garrison Access . | . . . . . . . . Terminal Hacks 16 | . . . . 3 11 . 2 Record 10 | . . . . . 10 . . Prototype ID Bank 1 | . . . . . . . 1 Open Door 1 | . . . . 1 . . . Terminal Index 1 | . . . . . . . 1 Alert Level 1 | . . . . 1 . . . Zone Layout 1 | . . . . 1 . . . Proto ID Catalog 1 | . . . . . 1 . . Fabricator Hacks . | . . . . . . . . Repair Station Hacks 2 | . . . . . . . 2 Scan Component 1 | . . . . . . . 1 Repair 1 | . . . . . . . 1 Recycling Unit Hacks . | . . . . . . . . Scanalyzer 2 | . . . . . . . 2 Retrieve Study 2 | . . . . . . . 2 Garrison Access Hacks . | . . . . . . . . Unauthorized Hacks 5 | . . . 1 . . . 4 Terminals 5 | . . . 1 . . . 4 Botnet 3 | . . . 1 . . . 2 Skim 2 | . . . . . . . 2 Fabricators . | . . . . . . . . Repair Stations . | . . . . . . . . Recycling Units . | . . . . . . . . Scanalyzers . | . . . . . . . . Garrison Access . | . . . . . . . . Data Cores Recovered . | . . . . . . . . Used . | . . . . . . . . Hacking Detections 8 | . . . 1 2 . . 5 Full Trace Events 2 | . . . . . . . 2 Feedback Events 1 | . . . . . . . 1 Corruption 1 | . . . . . . . 1 Feedback Blocked . | . . . . . . . . Robot Schematics Acquired . | . . . . . . . . Robots Built . | . . . . . . . . Authchips . | . . . . . . . . Time . | . . . . . . . . Total Robot Build Rating . | . . . . . . . . Part Schematics Acquired . | . . . . . . . . Parts Built . | . . . . . . . . Authchips . | . . . . . . . . Time . | . . . . . . . . Total Part Build Rating . | . . . . . . . . Part Studies Acquired 1 | . . . . . . . 1 Parts Repaired 1 | . . . . . . . 1 Time 26 | . . . . . . . 26 Parts Recycled . | . . . . . . . . Recycled Matter . | . . . . . . . . Retrieved Matter . | . . . . . . . . Retrieved Components . | . . . . . . . . Parts Scanalyzed . | . . . . . . . . Part Schematics Acquired . | . . . . . . . . Parts Damaged . | . . . . . . . . Bothacking | -11 -10 -10 -9 -9 -9 -8 -8 ------------ Run | Yrd Mat Min Mat Min Exi Min Mat Used RIF Installer . | . . . . . . . . Robots Hacked . | . . . . . . . . Non-combat . | . . . . . . . . Combat . | . . . . . . . . Robot Hacks Applied . | . . . . . . . . Relay Couplers Released . | . . . . . . . . Fabnet Peak Effective % . | . . . . . . . . Robots Rewired . | . . . . . . . . Allies Hacked . | . . . . . . . . Hacks Repelled . | . . . . . . . . Allies | -11 -10 -10 -9 -9 -9 -8 -8 -------- Run | Yrd Mat Min Mat Min Exi Min Mat Total Allies 4 | . . . . 4 . . . Largest Group 4 | . . . . 4 1 1 1 Highest-Rated Group 71 | . . . . 71 16 16 16 Highest-Rated Ally 31 | . . . . 31 16 16 16 Total Orders . | . . . . . . . . Ally Attacks 18 | . . . . 11 . 6 1 Total Damage 198 | . . . . 118 . 80 . Kills 2 | . . . . 1 . 1 . Allies Corrupted . | . . . . . . . . Allies Melted . | . . . . . . . . Intel | -11 -10 -10 -9 -9 -9 -8 -8 ------- Run | Yrd Mat Min Mat Min Exi Min Mat Active Infowar (turns) 3670 | 85 250 791 179 1025 744 311 285 Sensors 2544 | . . . 179 1025 744 311 285 Seismic 1126 | 85 250 791 . . . . . Robot Analysis Total . | . . . . . . . . Derelict Logs Recovered 4 | . . 2 . 2 . . . Drone Launches . | . . . . . . . . Drone Recoveries . | . . . . . . . . Exploration | -11 -10 -10 -9 -9 -9 -8 -8 ------------- Run | Yrd Mat Min Mat Min Exi Min Mat Turns Passed 3781 | 167 250 791 208 1025 744 311 285 Spaces Moved 2166 | 102 126 456 114 611 461 183 113 Core 7 | 7 . . . . . . . Treads 1981 | . 43 456 114 611 461 183 113 Legs 178 | 95 83 . . . . . . Wheels . | . . . . . . . . Hover . | . . . . . . . . Flight . | . . . . . . . . Fastest Speed 50 | 50 120 160 160 160 160 160 155 Average Speed 156 | 119 133 160 160 160 160 160 157 Slowest Speed 160 | 150 160 160 160 160 160 160 160 Overloaded Moves . | . . . . . . . . Propulsion Burnouts . | . . . . . . . . Robots Hopped . | . . . . . . . . Potential Cave-ins . | . . . . . . . . Cave-ins Triggered . | . . . . . . . . Exploration Rate (%) 37 | 4 23 83 12 62 66 38 11 Regions Visited 7 Branch Regions 4 Pre-discovered Areas 1 | . . . . 1 . . . Known Exits Taken 3 | . . 1 1 . . 1 . Unknown Exits Taken 4 | 1 1 . . 1 1 . . Scrap Searched 3 | . . 1 . 1 . 1 . Spaces Dug . | . . . . . . . . Terrain Destroyed 14 | . . 14 . . . . . Melee . | . . . . . . . . Projectile . | . . . . . . . . AOE 14 | . . 14 . . . . . Terrain Rammed . | . . . . . . . . Walls Destroyed . | . . . . . . . . Machines Disabled . | . . . . . . . . Actions | -11 -10 -10 -9 -9 -9 -8 -8 --------- Run | Yrd Mat Min Mat Min Exi Min Mat Total 2444 | 128 180 491 138 643 470 189 205 Wait 117 | . 22 8 . 7 . . 80 Move 2159 | 101 125 455 113 610 460 182 113 Hop . | . . . . . . . . Pick Up 39 | 8 7 2 8 5 5 1 3 Fast Attach 10 | 7 . . . 2 . . 1 Attach 2 | . . . 1 . . . 1 Detach 1 | . . . . 1 . . . Swap 21 | 1 4 5 7 2 1 . 1 Drop 27 | . 7 3 7 6 4 . . Fire 62 | 8 15 16 2 9 . 6 6 Melee . | . . . . . . . . Ram . | . . . . . . . . Kick 3 | 3 . . . . . . . Crush 3 | . . 2 . 1 . . . Escape Stasis . | . . . . . . . . Rewire . | . . . . . . . . Trap . | . . . . . . . . Miscellaneous . | . . . . . . . . Route ------- -11/Scrapyard -10/Materials -10/Mines (discovered 2 exits: *Mat x2) -9/Materials -9/Mines (discovered 3 exits: *Mat x2 / *Exi) -9/Exiles (discovered 2 exits: [*Min x2]) -8/Mines -8/Materials History --------- Turn | Location | Event 16 | -11/Scrapyard | Discovered new exit (range 15) 168 | -11/Scrapyard | Entered Materials 302 | -10/Materials | Build established: Mutant 362 | -10/Materials | Discovered new exit (range 14) 418 | -10/Materials | Entered Mines 425 | -10/Mines | Met a Derelict bent on vengeance 484 | -10/Mines | Discovered new exit (range 15) 502 | -10/Mines | Learned 2 Materials zone layouts 728 | -10/Mines | Identified exit to Materials 1209 | -10/Mines | Entered Materials 1209 | -9/Materials | Evolved 2 slots: Propulsion x1, Utility x1 1372 | -9/Materials | Met 8R-AWN 1398 | -9/Materials | Discovered new exit (range 4) 1402 | -9/Materials | Identified exit to Mines 1417 | -9/Materials | Entered Mines 1418 | -9/Mines | Followed 8R-AWN into the Mines 1476 | -9/Mines | Learned Materials non-interactive machine intel 1610 | -9/Mines | Assisted by bots powering up and referring to "LRC-V3" 1681 | -9/Mines | Assembled infested the area 1961 | -9/Mines | Discovered new exit (range 5) 1970 | -9/Mines | Received a Rocket Launcher from a helpful Derelict 1974 | -9/Mines | Identified exit to Materials 2031 | -9/Mines | Found a Scrap Suit stashed away for nefarious purposes 2071 | -9/Mines | Received a Mining Laser from a helpful Derelict 2142 | -9/Mines | Discovered exit to Materials (range 11) 2321 | -9/Mines | Met a Derelict shopkeep closing up shop 2435 | -9/Mines | Discovered new exit (range 5) 2442 | -9/Mines | Entered Exiles 2442 | -9/Exiles | Accompanied by 1 ally 2463 | -9/Exiles | Discovered new exit (range 15) 2479 | -9/Exiles | Welcomed by 8R-AWN 2510 | -9/Exiles | Met EX-HEX 2554 | -9/Exiles | Met EX-BIN 2577 | -9/Exiles | Aligned with FarCom system 2578 | -9/Exiles | Given EX-Vault access code 2633 | -9/Exiles | Opened EX-Vault 2647 | -9/Exiles | Found AWS/Autocannon 2680 | -9/Exiles | Warned to stay clear of 0b10 Research branches 2989 | -9/Exiles | Met EX-DEC 3070 | -9/Exiles | Discovered new exit (range 10) 3186 | -9/Exiles | Left Exiles lab with AWS/Autocannon 3186 | -9/Exiles | Entered Mines 3186 | -8/Mines | Accompanied by 1 ally 3471 | -8/Mines | Discovered exit to Materials (range 16) 3476 | -8/Mines | Build established: Skirmisher 3497 | -8/Mines | Entered Materials 3497 | -8/Materials | Accompanied by 1 ally 3497 | -8/Materials | Evolved 2 slots: Utility x1, Weapon x1 3498 | -8/Materials | Loaded intel: 25 non-interactive machine locations 3532 | -8/Materials | Repaired Lgt. Treads 3782 | -8/Materials | Self-destructed Last Messages --------------- 03687_ Acquired Adv. Treads. 03752_ Acquired 10 matter. 03782_ Connecting with Terminal... >>Prototypes Downloading prototype IDs... Cld. VTOL Module Imp. Spread Laser >>Trojan(Botnet) Trojan loaded successfully. Testing... Terminal linked with 1 system. Awaiting botnet instructions. >>Trojan(Skim) Trojan loaded successfully. Testing... Terminal linked with 1 system. Please expand to 3 more systems! Feedback: System corruption (+1%). 03782_ ALERT: Suspicious activity at Terminal M002. Dispatching Investigation squad. Map ----- +----------------------------------------------------+ | ?????????+ "T" # # """ #???????????? | | ?????????# """ + + """ #???????????? | | ?????????# ! #+###### ! #???????????? | | ?????????##+######## ## / #???????????? | | ??????????# ???????# "" #########+##???????????? | | ?"""??????#????????# S"" #???????# #????????????? | | """""??????????????# "" #???????# #????????????? | | """""??????????????# #???????# #????????????? | | """""??????????????#######???????# #????????????? | | ?"""?????????????????????#########+#????????????? | | ?????????????????????????# """ #????????????? | | ?????????????????????????# """ #????????????? | | ?????????????????????????# """ #????????????? | | ?????????????????????????# % #????????????? | | ?????????????g???????????# """ #????????????? | | ??????????????g??????????# % R" #????????????? | | ?????????????????????????# """ #????????????? | | ?????????????????????????# #????????????? | | ???????????????????####+######+#####????????????? | | ???????????????????# % #?????????????? | | ?????????????w?????# #?????????????? | | ???????????????????# #?????????????? | | ???????????????????# ############?????????????? | | ???????????????????# # #?????????????????? | | ???????????????????# # T #?????????????????? | | ???????????????????# + @ #?????????????????? | | ???????????????????# # #?????????????????? | | ???????????????????# #! #?????????????????? | | ???????????????????# # #?????????????????? | | ???????????????????# ########?????????????????? | | ???????????????????# #????????????????????????? | | ???????????????????# #????????????????????????? | | ???????????????????# #????????????????????????? | | ???????????????????# ?????????????????????????? | | ???????????????????# ?????????????????????????? | | ???????????????????# ?????????????????????????? | | ???????????????????# ?????????????????????????? | | ???????????????????# ?????????????????????????? | | ???????????????????# ?????????????????????????? | | ???????????????????? ?????????????????????????? | | ????????????????????????????????????????????????? | | ????????????????????????????????????????????????? | | ????????????????????????????????????????????????? | | "???????????????????????????????????????????????? | | ????????????????????????????"""?????????????????? | | ????????????????????????????"""?????????????????? | | ????????????????????????????"""?????????????????? | | ????????????????????????????????????????????????? | | ????????????????????????????????????????????????? | | ????????????????????????????????????????????????? | +----------------------------------------------------+ Best States ------------- Heat Dissipation 42 Energy Generation 18 Energy Capacity 250 Matter Stores 300 Matter Capacity 300 Sight Range 16 Robot Scan Range 14 Terrain Scan Density 10 Evasion (%) 55 Armor Integrity Analysis 30 Recoil Reduction 3 Item Schematics ----------------- None Robot Schematics ------------------ None Fabricated ------------ Nothing Repaired ---------- Lgt. Treads | 36% | -8/Materials Studied --------- Shotgun | -8/Materials | Hacked Alien Tech Used ----------------- None Achievements -------------- Follow The Leader Preemptive Strike Challenges ------------ None Game ------ Seed NullFrostConstruct Manual? 0 Play Time 00:25:03 Cumulative 57.4 hours Start 2025.11.01 @ 14:37:41 End 2025.11.01 @ 17:49:59 Sessions 3 Manual Loads 0 Difficulty Rogue Special Mode None Game No. 61 Rogue 57 Adventurer 4 Explorer 0 Win Type - Total 1 Types 1/0/0/0/0/0/0/0/0/0 Lore% 38 Gallery% 37 Achievement% 24 Wizard Run 0 Options --------- Layout 1 ASCII 0 Keyboard 1 Movement Numpad Keybinds 0 Fullscreen 2 Font 32/SmallcapsGlow Map View 50x35 Zoom Use 0% Tactical HUD 1 Map Filters NONE Filters NONE Steam 1 RUN: e72b7396-4f9d-41ff-94f7-a6b861c8eec7